bitfinex/quotes_SOLUSD_20240603
["timestamp","ask_amount","ask_price","bid_price","bid_amount"]
[1717387695349,4.31,163.46,163.41,45.0]
[1717387695953,6.0741,163.45,163.38,9.1770639]
[1717387696149,4.31,163.42,163.38,9.1770639]
[1717387696349,4.31,163.42,163.36,14.3026212]
[1717387696672,4.31,163.43,163.36,14.3026212]
[1717387696851,4.31,163.43,163.36,9.9926212]
[1717387697054,4.31,163.42,163.36,14.3026212]
[1717387697255,4.31,163.43,163.36,9.9926212]
[1717387697470,4.31,163.43,163.36,14.3026212]
[1717387697851,4.31,163.43,163.37,49.31]
[1717387698443,4.31,163.44,163.38,4.31]
[1717387698652,4.31,163.44,163.39,45.0]
[1717387700979,2.263,163.5,163.39,51.6534]
[1717387701156,4.31,163.5,163.4,20.17]
[1717387701352,18.8349,163.52,163.41,54.1770639]
[1717387701660,18.8349,163.52,163.42,20.0]
[1717387701869,4.31,163.49,163.43,45.0]
[1717387702073,4.31,163.48,163.42,4.31]
[1717387702251,2.2628,163.51,163.43,45.0]
[1717387702883,0.17,163.5,163.43,45.0]
[1717387703052,0.34,163.51,163.43,45.0]
[1717387703474,0.17,163.51,163.43,49.31]
[1717387703668,4.31,163.5,163.44,4.31]
[1717387703977,0.17,163.51,163.45,45.0]
[1717387704153,6.0551,163.53,163.45,45.0]
[1717387704358,4.31,163.51,163.45,45.0]
[1717387706157,4.31,163.5,163.45,45.0]
[1717387706475,4.31,163.49,163.45,45.0]
[1717387706775,0.17,163.52,163.44,45.0]
[1717387706955,4.31,163.49,163.44,45.0]
[1717387707158,0.34,163.52,163.44,45.0]
[1717387707379,4.31,163.49,163.44,45.0]
[1717387707757,4.31,163.49,163.43,49.31]
[1717387708571,0.34,163.52,163.43,49.31]
[1717387708777,4.31,163.5,163.43,49.31]
[1717387709972,4.31,163.5,163.44,4.31]
[1717387710174,10.4169,163.5,163.45,45.0]
[1717387710474,4.31,163.49,163.45,45.0]
[1717387710666,4.31,163.49,163.44,45.0]
[1717387711068,6.1069,163.5,163.44,45.0]
[1717387711397,6.1069,163.5,163.41,9.1802592]
[1717387711398,0.88664873,163.49,163.41,9.1802592]
[1717387711689,0.88664873,163.49,163.4,13.4902592]
[1717387711690,4.31,163.46,163.4,13.4902592]
[1717387711861,4.31,163.46,163.4,4.31]
[1717387712060,4.31,163.46,163.38,9.1802592]
[1717387712282,4.31,163.46,163.4,10.424]
[1717387713092,0.17,163.47,163.4,10.424]
[1717387713279,4.31,163.46,163.4,10.424]
[1717387713979,4.31,163.46,163.4,4.31]
[1717387714174,4.31,163.46,163.41,45.0]
[1717387714380,10.8372,163.46,163.41,45.0]
[1717387720698,0.17,163.48,163.41,45.0]
[1717387720883,4.31,163.47,163.41,49.31]
[1717387723499,4.31,163.47,163.41,45.0]
[1717387723876,4.31,163.47,163.41,49.31]
[1717387724379,4.31,163.47,163.41,45.0]
[1717387724681,4.31,163.47,163.41,49.31]
[1717387725196,4.31,163.46,163.41,49.31]
[1717387727628,4.31,163.46,163.41,45.0]
[1717387727902,4.31,163.47,163.41,49.31]
[1717387729403,4.31,163.47,163.41,45.0]
[1717387729905,4.31,163.47,163.41,49.31]
[1717387730803,0.17,163.49,163.41,49.31]
[1717387730996,6.3546,163.5,163.45,4.31]
[1717387731210,6.3546,163.5,163.41,45.0]
[1717387731211,6.3546,163.5,163.46,45.0]
[1717387731587,6.3546,163.5,163.45,45.0]
[1717387731809,10.6646,163.5,163.45,45.0]
[1717387735606,11.07977852,163.55,163.45,45.0]
[1717387735813,4.31,163.51,163.45,45.0]
[1717387735986,4.31,163.51,163.45,49.31]
[1717387739299,2.2624,163.54,163.46,4.31]
[1717387739519,0.17,163.53,163.47,45.0]
[1717387739805,10.673,163.52,163.47,45.0]
[1717387740180,10.4051,163.51,163.47,45.0]
[1717387740381,18.9183,163.52,163.42,4.31]
[1717387740382,4.31,163.48,163.42,4.31]
[1717387741386,4.31,163.48,163.4,20.0]
[1717387741605,0.17,163.5,163.41,4.31]
[1717387741606,4.31,163.47,163.41,4.31]
[1717387742691,0.17,163.5,163.41,4.31]
[1717387742885,4.31,163.48,163.41,4.31]
[1717387743082,4.31,163.48,163.42,45.0]
[1717387743712,4.31,163.48,163.42,49.31]
[1717387743911,0.34,163.5,163.43,4.31]
[1717387744116,4.48,163.5,163.44,49.31]
[1717387744294,4.31,163.5,163.44,49.31]
[1717387747999,4.31,163.5,163.44,45.0]
[1717387748321,4.31,163.5,163.44,49.31]
[1717387748622,4.31,163.49,163.44,45.0]
[1717387749493,4.31,163.5,163.44,45.0]
[1717387751502,4.31,163.49,163.44,45.0]
[1717387754835,10.8612,163.49,163.44,45.0]
[1717387755151,4.31,163.48,163.45,45.0]
[1717387755314,4.31,163.48,163.43,45.0]
[1717387757820,6.5512,163.49,163.43,45.0]
[1717387758003,25.0257,163.53,163.44,4.31]
[1717387758318,0.34,163.52,163.45,45.0]
[1717387758524,4.31,163.5,163.45,45.0]
[1717387761628,4.31,163.5,163.44,45.0]
[1717387762132,2.6027,163.52,163.4,29.16400815]
[1717387762133,2.2628,163.51,163.4,29.16400815]
[1717387762332,4.31,163.48,163.41,4.31]
[1717387762510,4.31,163.47,163.41,4.31]
[1717387762709,0.34,163.5,163.41,4.31]
[1717387762920,4.31,163.47,163.41,4.31]
[1717387763333,4.48,163.46,163.38,9.16400815]
[1717387763639,4.31,163.45,163.39,4.31]
[1717387764720,4.31,163.45,163.37,14.35459925]
[1717387764929,4.31,163.45,163.39,4.31]
[1717387765116,4.31,163.45,163.4,45.0]
[1717387765439,4.31,163.44,163.41,6.114]
[1717387765657,6.2602,163.43,163.38,4.31]
[1717387765827,4.31,163.4,163.36,0.8155573]
[1717387766343,4.31,163.39,163.36,0.8155573]
[1717387767738,8.6943,163.42,163.36,0.8155573]
[1717387767923,4.31,163.4,163.36,0.8155573]
[1717387768853,6.4302,163.42,163.36,0.8155573]
[1717387769146,8.6943,163.42,163.36,0.8155573]
[1717387770845,6.4302,163.42,163.36,0.8155573]
[1717387771147,0.17,163.42,163.36,0.8155573]
[1717387771323,4.31,163.42,163.36,0.8155573]
[1717387771820,0.17,163.43,163.36,0.8155573]
[1717387772016,4.31,163.42,163.36,5.1255573]
[1717387772247,4.31,163.42,163.37,45.0]
[1717387773444,4.31,163.4,163.37,45.0]
[1717387775451,4.31,163.39,163.37,45.0]
[1717387778333,4.31,163.39,163.36,0.8155573]
[1717387781855,4.31,163.4,163.36,0.8155573]
[1717387784060,4.31,163.39,163.36,0.8155573]
[1717387787045,6.2535,163.41,163.36,0.8155573]
[1717387787239,0.17,163.4,163.36,0.8155573]
[1717387792663,0.34,163.41,163.36,0.8155573]
[1717387798756,2.6043,163.41,163.36,0.8155573]
[1717387799139,0.34,163.41,163.36,0.8155573]
[1717387799348,4.31,163.38,163.36,0.8155573]
[1717387799736,4.31,163.37,163.36,0.8155573]
[1717387800162,4.31,163.38,163.36,0.8155573]
[1717387800670,2.2644,163.4,163.36,0.8155573]
[1717387800859,4.31,163.38,163.36,0.8155573]
[1717387802361,4.48,163.37,163.36,0.8155573]
[1717387803949,2.2644,163.4,163.36,0.8155573]
[1717387804156,4.31,163.37,163.36,0.8155573]
[1717387804569,4.31,163.38,163.36,0.8155573]
[1717387806369,4.5284,163.42,163.36,0.8155573]
[1717387806370,2.2641,163.42,163.36,0.8155573]
[1717387806667,2.2639,163.43,163.36,0.8155573]
[1717387806875,4.31,163.46,163.36,0.8155573]
[1717387807054,2.2639,163.43,163.36,0.8155573]
[1717387807253,4.31,163.42,163.36,0.8155573]
[1717387807870,2.2639,163.43,163.36,5.1255573]
[1717387808083,2.2639,163.43,163.37,45.0]
[1717387808281,2.2639,163.43,163.37,51.3522]
[1717387808583,4.31,163.42,163.37,51.3522]
[1717387809584,4.31,163.41,163.37,51.3522]
[1717387811463,2.2639,163.43,163.37,51.3522]
[1717387811666,4.31,163.41,163.37,51.3522]
[1717387814758,4.31,163.41,163.37,45.0]
[1717387815077,2.2642,163.41,163.36,0.8155573]
[1717387815274,4.31,163.39,163.36,0.8155573]
[1717387816089,4.31,163.4,163.36,0.8155573]
[1717387817374,2.2645,163.39,163.36,0.8155573]
[1717387817575,4.31,163.38,163.36,0.8155573]
[1717387818163,4.31,163.39,163.36,0.8155573]
[1717387818785,4.31,163.39,163.36,0.3155573]
[1717387822367,6.5745,163.39,163.36,0.3155573]
[1717387822784,4.31,163.38,163.36,0.3155573]
[1717387823511,6.5744,163.4,163.36,0.3155573]
[1717387823988,4.31,163.39,163.36,0.3155573]
[1717387824399,2.2644,163.4,163.36,0.3155573]
[1717387824585,4.31,163.39,163.36,0.3155573]
[1717387826264,2.2644,163.4,163.36,0.3155573]
[1717387826473,4.31,163.41,163.36,0.3155573]
[1717387826688,0.17,163.42,163.36,0.3155573]
[1717387826879,2.4341,163.42,163.36,0.3155573]
[1717387827084,6.5741,163.42,163.36,0.3155573]
[1717387827394,4.31,163.41,163.36,0.3155573]
[1717387827571,4.31,163.41,163.36,6.3378573]
[1717387827771,4.31,163.41,163.37,45.0]
[1717387829684,4.31,163.41,163.37,6.5149]
[1717387829880,4.31,163.41,163.38,45.0]
[1717387830573,6.5743,163.41,163.38,45.0]
[1717387830769,4.31,163.4,163.38,45.0]
[1717387830996,6.5743,163.4,163.38,45.0]
[1717387831182,4.31,163.4,163.38,45.0]
[1717387831377,2.2642,163.41,163.38,45.0]
[1717387835003,2.2643,163.4,163.38,45.0]
[1717387836693,2.2643,163.4,163.36,0.3155573]
[1717387836897,0.17,163.41,163.36,0.3155573]
[1717387837123,4.31,163.38,163.36,0.3155573]
[1717387838404,6.5745,163.39,163.36,0.3155573]
[1717387838574,4.31,163.38,163.36,0.3155573]
[1717387841387,6.5745,163.39,163.36,0.3155573]
[1717387842801,4.31,163.38,163.36,0.3155573]
[1717387844403,2.2645,163.39,163.36,0.3155573]
[1717387844606,4.31,163.38,163.36,0.3155573]
[1717387845517,2.2645,163.39,163.36,0.3155573]
[1717387845885,2.2644,163.4,163.36,0.3155573]
[1717387846085,6.5744,163.4,163.36,0.3155573]
[1717387846280,2.2641,163.42,163.36,0.3155573]
[1717387846512,4.31,163.4,163.36,0.3155573]
[1717387846692,4.31,163.41,163.36,0.3155573]
[1717387847012,6.5742,163.41,163.36,6.8781573]
[1717387847320,4.31,163.4,163.37,45.0]
[1717387848982,4.31,163.39,163.37,45.0]
[1717387849309,2.2642,163.41,163.37,45.0]
[1717387860839,2.2643,163.4,163.37,45.0]
[1717387862249,0.17,163.41,163.37,45.0]
[1717387862450,2.2646,163.39,163.36,0.3155573]
[1717387863514,2.4344,163.4,163.36,0.3155573]
[1717387864555,0.17,163.4,163.36,0.3155573]
[1717387865538,4.31,163.37,163.36,0.3155573]
[1717387866321,4.48,163.37,163.36,0.3155573]
[1717387867532,0.17,163.37,163.36,0.3155573]
[1717387867837,4.31,163.39,163.36,0.3155573]
[1717387869946,6.5745,163.39,163.36,0.3155573]
[1717387876243,4.31,163.38,163.36,0.3155573]
[1717387877163,6.5747,163.37,163.36,0.3155573]
[1717387878162,4.31,163.37,163.36,0.3155573]
[1717387879037,2.2646,163.38,163.36,0.3155573]
[1717387879236,4.31,163.37,163.36,0.3155573]
[1717387879834,6.5747,163.37,163.36,0.3155573]
[1717387880039,6.7447,163.37,163.36,0.3155573]
[1717387880729,2.4347,163.37,163.36,0.3155573]
[1717387881051,6.7447,163.37,163.36,0.3155573]
[1717387881363,6.9147,163.37,163.36,0.3155573]
[1717387881538,7.63134873,163.37,163.36,0.3155573]
[1717387882348,27.23534873,163.37,163.36,0.3155573]
[1717387882660,53.6212,163.37,163.36,0.3155573]
[1717387883546,53.6212,163.37,163.36,1e-08]
[1717387886243,37.623,163.37,163.36,1e-08]
[1717387886547,33.313,163.37,163.36,1e-08]
[1717387887650,37.623,163.37,163.36,1e-08]
[1717387893343,43.9293,163.37,163.36,1e-08]
[1717387894551,37.9139,163.37,163.36,1e-08]
[1717387900375,33.6039,163.37,163.36,1e-08]
[1717387901171,37.9139,163.37,163.36,1e-08]
[1717387907460,50.8439,163.37,163.36,1e-08]
[1717387911640,2.2656,163.31,163.29,6.626]
[1717387911846,4.31,163.3,163.29,6.626]
[1717387920549,4.31,163.3,163.24,4.31]
[1717387920550,6.5757,163.3,163.26,6.1429]
[1717387920784,4.31,163.29,163.26,6.1429]
[1717387920952,2.2657,163.3,163.26,6.1429]
[1717387921147,4.31,163.29,163.25,6.0174]
[1717387921472,4.31,163.29,163.25,16.5223]
[1717387921671,4.31,163.29,163.27,6.0174]
[1717387930599,4.31,163.29,163.25,6.4373]
[1717387933111,2.2656,163.31,163.25,6.4373]
[1717387933278,2.2656,163.31,163.26,6.2574]
[1717387933608,6.5755,163.32,163.27,6.2574]
[1717387933780,4.5302,163.34,163.27,6.2574]
[1717387933978,4.31,163.32,163.27,6.2574]
[1717387935490,4.31,163.31,163.27,6.2574]
[1717387936007,4.31,163.3,163.27,6.2574]
[1717387936599,4.31,163.3,163.25,9.19339334]
[1717387936812,4.31,163.3,163.25,6.5699]
[1717387938921,4.31,163.3,163.25,15.76329334]
[1717387939506,4.31,163.3,163.25,6.5699]
[1717387940317,2.2653,163.33,163.24,20.04159334]
[1717387940493,4.31,163.31,163.25,0.56960655]
[1717387940693,4.31,163.31,163.25,4.87960655]
[1717387940993,4.31,163.31,163.25,14.07299989]
[1717387941410,4.31,163.31,163.25,9.76299989]
[1717387941815,4.31,163.31,163.25,9.19339334]
[1717387942003,4.31,163.31,163.24,20.04159334]
[1717387943221,4.31,163.31,163.24,21.24497239]
[1717387943927,4.31,163.31,163.25,9.19339334]
[1717387944213,2.2653,163.33,163.26,6.3768]
[1717387944419,4.31,163.31,163.26,6.3768]
[1717387946519,4.31,163.3,163.26,6.3768]
[1717387948416,4.31,163.29,163.26,6.3768]
[1717387949632,4.31,163.29,163.25,9.19339334]
[1717387951240,4.31,163.27,163.25,9.19339334]
[1717387951532,4.31,163.27,163.24,9.19339334]
[1717387952621,4.31,163.26,163.24,9.19339334]
[1717387952926,4.31,163.26,163.23,9.19339334]
[1717387953613,4.31,163.25,163.23,9.19339334]
[1717387954528,4.31,163.25,163.21,2.2669]
[1717387954727,4.31,163.26,163.21,2.2669]
[1717387956730,4.31,163.26,163.22,9.19472201]
[1717387957022,4.31,163.26,163.23,9.19472201]
[1717387957531,4.31,163.26,163.22,11.46152201]
[1717387959205,2.2659,163.29,163.22,11.46152201]
[1717387959406,4.31,163.26,163.22,11.46152201]
[1717387959606,4.31,163.27,163.22,11.46152201]
[1717387962426,4.31,163.26,163.22,11.46152201]
[1717387962638,4.31,163.26,163.22,9.19472201]
[1717387963235,4.31,163.26,163.21,11.46162201]
[1717387963438,4.31,163.26,163.21,2.2669]
[1717387968516,4.31,163.25,163.21,2.2669]
[1717387971949,4.31,163.25,163.2,2.2671]
[1717387972252,2.2662,163.27,163.2,2.2671]
[1717387972253,4.31,163.24,163.2,2.2671]
[1717387973236,6.5766,163.24,163.19,1.1069829]
[1717387973446,4.31,163.2,163.19,1.1069829]
[1717387978153,6.5771,163.2,163.19,1.1069829]
[1717387978356,4.31,163.2,163.19,1.1069829]
[1717387979239,23.0738,163.23,163.19,1.1069829]
[1717387979240,2.2669,163.22,163.19,1.1069829]
[1717387979555,4.31,163.21,163.19,1.1069829]
[1717387981236,2.2669,163.22,163.19,1.1069829]
[1717387981451,90.99765397,163.39,163.19,1.1069829]
[1717387981452,2.2666,163.24,163.19,1.1069829]
[1717387981666,6.5768,163.23,163.19,1.1069829]
[1717387982056,4.31,163.23,163.19,1.1069829]
[1717387983555,2.2666,163.24,163.19,1.1069829]
[1717387983770,11.3305,163.28,163.19,13.7503829]
[1717387983771,2.2665,163.25,163.19,13.7503829]
[1717387984078,2.2662,163.27,163.21,2.267]
[1717387984237,4.31,163.26,163.21,2.267]
[1717387984437,2.2662,163.27,163.21,2.267]
[1717387984669,11.19344162,163.32,163.19,7.1731829]
[1717387984670,2.266,163.29,163.19,7.1731829]
[1717387984845,2.266,163.29,163.23,4.31]
[1717387985180,2.266,163.29,163.24,8.7487]
[1717387985181,4.31,163.29,163.24,8.7487]
[1717387985341,2.2656,163.31,163.25,4.23418746]
[1717387985542,2.2656,163.31,163.25,2.2664]
[1717387985769,4.31,163.3,163.25,2.2664]
[1717387985942,4.31,163.3,163.25,8.7486]
[1717387986244,4.31,163.29,163.24,2.2665]
[1717387986445,4.31,163.28,163.24,2.2665]
[1717387986771,4.31,163.27,163.21,6.4822]
[1717387986959,4.31,163.27,163.21,10.7922]
[1717387987452,4.31,163.28,163.23,2.2667]
[1717387987649,4.31,163.28,163.23,8.6792]
[1717387987953,2.2658,163.3,163.24,2.2665]
[1717387988161,4.31,163.28,163.24,2.2665]
[1717387988554,4.31,163.29,163.24,8.6897]
[1717387990056,4.31,163.29,163.25,8.814]
[1717387990272,4.31,163.3,163.25,8.814]
[1717387990967,6.5757,163.3,163.24,2.2665]
[1717387991269,4.31,163.27,163.23,2.2667]
[1717387993777,2.2658,163.3,163.24,2.2665]
[1717387994069,4.31,163.27,163.24,2.2665]
[1717387994474,4.31,163.28,163.24,2.2665]
[1717387995461,2.2658,163.3,163.24,2.2665]
[1717387995662,4.31,163.28,163.24,2.2665]
[1717387998391,4.31,163.29,163.24,2.2665]
[1717387998989,4.31,163.29,163.25,4.71558531]
[1717387999479,4.31,163.3,163.25,4.71558531]
[1717388001971,6.5757,163.3,163.25,4.71558531]
[1717388002171,6.5757,163.3,163.24,2.2665]
[1717388002698,2.2657,163.3,163.24,2.2665]
[1717388002923,4.31,163.29,163.24,8.7565]
[1717388003205,2.2657,163.3,163.25,6.49]
[1717388003367,4.31,163.29,163.25,6.49]
[1717388004865,4.31,163.29,163.24,2.2665]
[1717388008300,4.31,163.29,163.25,6.2995]
[1717388008979,2.2657,163.3,163.25,6.2995]
[1717388008980,6.5757,163.3,163.25,6.2995]
[1717388010101,4.31,163.29,163.25,6.2995]
[1717388011815,2.2657,163.3,163.26,6.4254]
[1717388011990,4.31,163.29,163.26,6.4254]
[1717388012390,4.31,163.3,163.26,6.4254]
[1717388013496,6.5757,163.3,163.26,6.4254]
[1717388013914,6.5757,163.3,163.24,6.5765]
[1717388014086,2.2659,163.29,163.24,2.2665]
[1717388014588,6.5759,163.29,163.24,2.2665]
[1717388015198,6.5759,163.29,163.24,8.4055]
[1717388015199,4.31,163.29,163.24,8.4055]
[1717388019115,6.7961,163.34,163.24,6.3308]
[1717388019413,6.7961,163.34,163.29,6.3308]
[1717388019616,6.7961,163.34,163.29,8.5965]
[1717388019904,6.5751,163.35,163.3,2.2657]
[1717388020122,6.5751,163.35,163.29,8.5966]
[1717388020909,4.31,163.34,163.29,8.5966]
[1717388021386,4.31,163.33,163.25,6.2736]
[1717388021712,4.31,163.32,163.26,4.31]
[1717388022091,2.2652,163.34,163.25,10.5836]
[1717388022292,2.2652,163.34,163.26,4.31]
[1717388022789,2.2652,163.34,163.25,10.5836]
[1717388023795,4.31,163.31,163.25,10.5836]
[1717388024204,2.2652,163.34,163.25,10.5836]
[1717388025486,2.2651,163.35,163.26,4.31]
[1717388026205,2.2651,163.35,163.27,4.31]
[1717388026510,4.31,163.33,163.27,4.31]
[1717388027313,4.31,163.32,163.26,4.31]
[1717388027519,4.31,163.32,163.25,10.5836]
[1717388028194,4.31,163.31,163.25,10.5836]
[1717388029218,2.2652,163.34,163.25,10.5836]
[1717388030327,13.29702317,163.35,163.25,10.5836]
[1717388030498,0.17,163.34,163.25,10.5836]
[1717388031216,4.31,163.32,163.25,10.5836]
[1717388035302,2.4352,163.34,163.25,10.5836]
[1717388035639,2.4352,163.34,163.26,4.31]
[1717388036119,2.2651,163.35,163.28,4.31]
[1717388036319,4.31,163.34,163.28,4.31]
[1717388037220,21.20705635,163.39,163.28,4.31]
[1717388037420,4.31,163.35,163.29,4.31]
[1717388041425,4.31,163.34,163.28,10.435]
[1717388042233,2.2649,163.36,163.28,10.435]
[1717388042433,4.31,163.34,163.28,10.435]
[1717388043537,2.2649,163.36,163.28,10.435]
[1717388043908,4.31,163.34,163.28,10.435]
[1717388044127,4.31,163.35,163.28,10.435]
[1717388045929,4.31,163.35,163.29,4.31]
[1717388046128,2.2647,163.37,163.29,4.31]
[1717388046337,4.31,163.35,163.29,4.31]
[1717388048920,2.2649,163.36,163.29,4.31]
[1717388049121,0.17,163.38,163.27,4.31]
[1717388049122,4.31,163.34,163.27,4.31]
[1717388049322,4.31,163.33,163.27,4.31]
[1717388051439,4.31,163.34,163.28,4.31]
[1717388051620,4.31,163.34,163.28,10.435]
[1717388054343,4.31,163.35,163.28,10.435]
[1717388054642,2.2648,163.37,163.28,10.435]
[1717388054845,4.31,163.35,163.28,10.435]
[1717388057639,4.31,163.35,163.27,6.125]
[1717388057818,4.31,163.34,163.28,10.435]
[1717388058134,2.4349,163.36,163.28,10.435]
[1717388058316,2.4349,163.36,163.26,29.19308222]
[1717388058317,4.31,163.33,163.27,4.31]
[1717388059228,4.31,163.33,163.26,20.0]
[1717388059540,4.31,163.33,163.27,4.31]
[1717388061448,4.31,163.33,163.26,4.31]
[1717388061626,4.31,163.32,163.26,4.31]
[1717388062146,4.31,163.32,163.25,19.77668222]
[1717388062455,2.98184873,163.34,163.25,10.5836]
[1717388062617,2.2652,163.34,163.25,10.5836]
[1717388062952,2.98184873,163.34,163.25,10.5836]
[1717388063328,2.98184873,163.34,163.25,19.77674546]
[1717388063741,0.17,163.33,163.25,19.77674546]
[1717388063951,2.4353,163.33,163.25,19.77674546]
[1717388068572,0.17,163.33,163.25,19.77674546]
[1717388069061,4.31,163.3,163.25,15.46674546]
[1717388069274,4.31,163.3,163.25,6.2736]
[1717388071048,4.31,163.3,163.24,4.31]
[1717388072261,4.31,163.29,163.23,9.19374096]
[1717388072430,4.31,163.28,163.23,9.19374096]
[1717388072942,4.31,163.28,163.22,9.19374096]
[1717388073134,0.17,163.31,163.22,4.31]
[1717388073325,4.31,163.28,163.22,4.31]
[1717388073529,0.34,163.31,163.23,4.31]
[1717388074044,4.31,163.29,163.23,4.31]
[1717388075359,0.34,163.31,163.23,4.31]
[1717388075534,4.31,163.29,163.23,4.31]
[1717388077150,0.34,163.31,163.23,4.31]
[1717388077358,4.31,163.3,163.24,4.31]
[1717388077861,4.31,163.3,163.21,21.51504096]
[1717388078454,4.31,163.3,163.22,9.19374096]
[1717388079054,0.34,163.31,163.22,9.19374096]
[1717388079248,4.31,163.3,163.22,9.19374096]
[1717388079860,4.31,163.3,163.23,9.19374096]
[1717388080246,2.2655,163.32,163.23,9.19374096]
[1717388080436,4.31,163.3,163.23,9.19374096]
[1717388081057,4.31,163.3,163.22,9.19374096]
[1717388082457,4.31,163.3,163.21,21.51504096]
[1717388082633,4.31,163.3,163.22,0.45201404]
[1717388083150,4.31,163.3,163.22,9.645755]
[1717388083970,4.31,163.3,163.23,9.19374096]
[1717388085152,6.5756,163.31,163.23,9.19374096]
[1717388085362,2.2656,163.31,163.23,9.19374096]
[1717388085535,30.6422,163.36,163.23,9.19374096]
[1717388085536,2.2652,163.34,163.27,4.31]
[1717388085747,2.2652,163.34,163.26,4.31]
[1717388085748,4.31,163.32,163.26,4.31]
[1717388089751,4.31,163.31,163.25,4.31]
[1717388091055,2.2653,163.33,163.25,4.31]
[1717388091944,2.2653,163.33,163.26,4.31]
[1717388094949,0.34,163.35,163.26,4.31]
[1717388095160,0.34,163.35,163.28,4.31]
[1717388095362,4.31,163.34,163.28,4.31]
[1717388095547,4.31,163.33,163.27,4.31]
[1717388095755,4.31,163.33,163.26,4.31]
[1717388095962,2.2652,163.34,163.26,4.31]
[1717388096144,4.31,163.33,163.26,4.31]
[1717388097876,4.31,163.3,163.24,13.50223536]
[1717388098355,4.31,163.3,163.24,4.31]
[1717388100572,4.31,163.31,163.25,4.31]
[1717388100955,4.48,163.32,163.26,4.31]
[1717388101174,4.31,163.32,163.26,4.31]
[1717388101392,4.31,163.33,163.26,4.31]
[1717388101553,4.48,163.33,163.26,4.31]
[1717388102072,0.17,163.33,163.26,4.31]
[1717388102280,4.31,163.33,163.26,4.31]
[1717388103154,2.2652,163.34,163.26,4.31]
[1717388103356,2.2648,163.37,163.3,4.31]
[1717388103585,4.31,163.36,163.3,4.31]
[1717388104376,2.2648,163.37,163.3,4.31]
[1717388104961,6.5748,163.37,163.3,4.31]
[1717388105356,4.31,163.36,163.3,4.31]
[1717388106279,6.5748,163.37,163.3,4.31]
[1717388106583,6.5748,163.37,163.27,15.31648365]
[1717388106584,5.18158139,163.41,163.28,60.0]
[1717388106756,13.29411544,163.4,163.33,4.31]
[1717388107081,11.02971544,163.39,163.34,5.27277948]
[1717388107267,4.31,163.41,163.34,5.27277948]
[1717388107461,4.31,163.41,163.35,4.31]
[1717388107779,2.2642,163.42,163.36,0.96270989]
[1717388107964,6.5742,163.41,163.36,0.96270989]
[1717388108475,6.5742,163.41,163.35,4.31]
[1717388109284,2.2642,163.41,163.34,4.31]
[1717388110585,2.4341,163.42,163.34,4.31]
[1717388110771,8.7761,163.43,163.35,4.31]
[1717388110976,4.31,163.42,163.35,4.31]
[1717388112383,8.7761,163.43,163.35,4.31]
[1717388112553,4.31,163.42,163.35,4.31]